Cogmind - Beta 9.3 @@@ ROGUE MODE // 2019.12.17 @ 08:22:54 // Winter2019/RPGLIKE Player: SHADOWELITE7 Result: Destroyed by G-47 Trooper with Particle Gun Performance ------------- Evolutions (2) 1000 Regions Visited (5) 1000 Robots Destroyed (23) 115 Value Destroyed (448) 448 Prototype IDs (23) 460 Alien Tech Used (0) 0 Bonus (93) 93 TOTAL SCORE: 3116 Bonus ------- Aligned with FarCom 300 Friendly Fire -207 Cogmind --------- Core Integrity 0/800 Matter 700/700 Energy 300/300 System Corruption 0% Temperature Cool (207) Movement Treading (160) Location -8/Materials Parts ------- > --- POWER (2) -------- Light Ion Engine Light Ion Engine > --- PROPULSION (2) --- Light Treads Light Treads > --- UTILITY (2) ------ Medium Matter Pod Large Matter Pod > --- WEAPON (3) ------- Advanced Beam Rifle Guided Plasma Cannon Grenade Launcher > --- INVENTORY (1) ---- Minigun Peak State ------------ > --- POWER ------------ Light Ion Engine Light Ion Engine > --- PROPULSION ------- Light Treads Light Treads > --- UTILITY ---------- Medium Matter Pod Large Matter Pod > --- WEAPON ----------- Advanced Beam Rifle Guided Plasma Cannon Grenade Launcher > --- INVENTORY -------- (None) [Rating: 19] Favorites ----------- Power Light Ion Engine Engine Light Ion Engine Propulsion Light Treads Treads Light Treads Utility Medium Matter Pod Storage Medium Matter Pod Weapon Grenade Launcher Energy Gun Advanced Beam Rifle Energy Cannon Guided Plasma Cannon Ballistic Gun Assault Rifle Launcher Grenade Launcher Build | -11 -10 -10 -10 -9 -8 ------- Run | Scr Mat Min Exi Min Mat Slots Evolved 5 | 5 . . . . . Power 1 | 1 . . . . . Propulsion 1 | 1 . . . . . Utility 1 | 1 . . . . . Weapon 2 | 2 . . . . . Parts Attached 14 | 7 4 . 2 . 1 Power 2 | 2 . . . . . Engine 2 | 2 . . . . . Core . | . . . . . . Reactor . | . . . . . . Propulsion 2 | 2 . . . . . Treads 2 | 2 . . . . . Leg . | . . . . . . Wheel . | . . . . . . Hover . | . . . . . . Flight . | . . . . . . Utility 3 | . 2 . 1 . . Device . | . . . . . . Storage 3 | . 2 . 1 . . Processor . | . . . . . . Hackware . | . . . . . . Protection . | . . . . . . Artifact . | . . . . . . Weapon 7 | 3 2 . 1 . 1 Energy Gun 3 | 2 . . . . 1 Energy Cannon 1 | . . . 1 . . Ballistic Gun 2 | 1 1 . . . . Ballistic Cannon . | . . . . . . Launcher 1 | . 1 . . . . Special Weapon . | . . . . . . Impact Weapon . | . . . . . . Slashing Weapon . | . . . . . . Piercing Weapon . | . . . . . . Special Melee Weapon . | . . . . . . Unidentified Prototypes 2 | . . . 1 . 1 Parts Lost . | . . . . . . Power . | . . . . . . Propulsion . | . . . . . . Utility . | . . . . . . Weapon . | . . . . . . Highest Loss Streak . | . . . . . . Average Slot Usage (%) 97 | . 75 100 99 100 100 Engine 22 | . 22 22 22 22 22 Treads 22 | . 22 22 22 22 22 Storage 20 | . 2 22 21 22 22 Energy Gun 1 | . 5 . . . 6 Energy Cannon 5 | . . . 2 11 11 Ballistic Gun 15 | . 18 22 19 11 4 Launcher 10 | . 5 11 11 11 11 Naked Turns . | . . . . . . Heaviest Build 26 | 9 16 16 26 26 26 Greatest Support 40 | 40 40 40 40 40 40 Greatest Overweight (x) . | . . . . . . Average Overweight (x) . | . . . . . . Largest Inventory Capacity 1 | . . . . . 1 Average Capacity . | . . . . . . Most Carried 1 | . . . . . 1 Average Carried . | . . . . . . Final Capacity 1 | . . . . . 1 Final Carried 1 | . . . . . 1 Class Distribution -------------------- 52% | Mutant 47% | Gunner Dominant Class ---------------- Mutant | -10/Materials Gunner | -10/Mines Gunner | -10/Exiles Mutant | -9/Mines Mutant | -8/Materials Resources | -11 -10 -10 -10 -9 -8 ----------- Run | Scr Mat Min Exi Min Mat Matter Collected 831 | 210 103 2 506 . 10 Remotely . | . . . . . . Salvage Created 400 | . 108 36 . 29 227 Parts 35 | . 16 1 . . 18 Haulers Intercepted . | . . . . . . Recyclers Shooed . | . . . . . . Parts Field Recycled . | . . . . . . Retrieved Matter . | . . . . . . Parts Self-Destructed . | . . . . . . Prevented . | . . . . . . Kills | -11 -10 -10 -10 -9 -8 ------- Run | Scr Mat Min Exi Min Mat Combat Hostiles Destroyed 18 | . 6 2 . 6 4 Guns 5 | . 5 . . . . Cannons 9 | . . . . 6 3 AOE 3 | . 1 2 . . . Classes Destroyed 7 | . 4 . . 1 2 Worker 1 | . 1 . . . . Builder 1 | . 1 . . . . Watcher 2 | . . . . . 2 Swarmer 4 | . 4 . . . . Grunt 4 | . 2 2 . . . Sentry 4 | . . . . . 4 Assembled 6 | . . . . 6 . Thug 1 | . . . . . 1 Best Kill Streak 4 | . 3 2 . 4 4 Combat Bots Only 4 | . 3 2 . 4 3 Max Kills in Single Turn 2 | . 2 1 . 1 1 Gunslinging . | . . . . . . Exploded 1 | . 1 1 . . . Melee . | . . . . . . Uniques/NPCs Destroyed . | . . . . . . Combat | -11 -10 -10 -10 -9 -8 -------- Run | Scr Mat Min Exi Min Mat Damage Taken 1008 | . 418 80 . 52 458 Core 803 | . 338 61 . 40 364 Absorbed by Shields . | . . . . . . Redirected to Core 689 | . 252 61 . 40 336 Core Remaining (%) 72 | 100 . . . 45 . Volleys Fired 47 | . 19 3 . 11 14 Largest 3 | . 3 3 . 1 1 Hottest 120 | . 70 70 . 120 120 Shots Fired 64 | . 30 9 . 11 14 Gun 31 | . 25 6 . . . Cannon 25 | . . . . 11 14 Launcher 8 | . 5 3 . . . Special . | . . . . . . Kinetic 31 | . 25 6 . . . Thermal 25 | . . . . 11 14 Explosive 8 | . 5 3 . . . Electromagnetic . | . . . . . . Robot Hit Streak 30 | . 7 5 . 16 30 Robot Miss Streak 3 | . 3 1 . . . Penetration Max . | . . . . . . Secondary Targets . | . . . . . . Shots Hit Robots 45 | . 13 7 . 11 14 Core Hits 30 | . 13 4 . 7 6 Critical Hits . | . . . . . . Critical Kills . | . . . . . . Critical Parts Destroyed . | . . . . . . Melee Attacks . | . . . . . . Impact . | . . . . . . Slashing . | . . . . . . Piercing . | . . . . . . Sneak Attacks . | . . . . . . Combat Hostiles . | . . . . . . Follow-up Attacks . | . . . . . . Damage Inflicted 1342 | . 312 137 . 387 506 Guns 159 | . 133 26 . . . Cannons 893 | . . . . 387 506 Explosions 284 | . 173 111 . . . Melee . | . . . . . . Ramming 6 | . 6 . . . . Kinetic 159 | . 133 26 . . . Thermal 893 | . . . . 387 506 Explosive 284 | . 173 111 . . . Electromagnetic . | . . . . . . Impact . | . . . . . . Slashing . | . . . . . . Piercing . | . . . . . . Highest Corruption . | . . . . . . Average Corruption . | . . . . . . Corruption Purged . | . . . . . . Overload Shots . | . . . . . . Overflow Damage 15 | . . . . 15 . Projectiles 15 | . . . . 15 . Explosions . | . . . . . . Melee . | . . . . . . Knockbacks . | . . . . . . Impact . | . . . . . . Kinetic . | . . . . . . Secondary . | . . . . . . Self-Inflicted Damage 50 | . 28 22 . . . Shots 2 | . 1 1 . . . Rammed 4 | . 4 . . . . Targets Rammed 4 | . 4 . . . . Kicked . | . . . . . . Crushed . | . . . . . . Highest Temperature 426 | . 86 68 . 306 426 Average Temperature 142 | . 36 41 . 136 189 Received Heat Transfer 204 | . 27 33 . . 144 Effects 5 | . . . . 1 4 Shutdowns 4 | . . . . . 4 Interference 1 | . . . . 1 . Siege Activations . | . . . . . . Robots Corrupted . | . . . . . . Combat Hostiles . | . . . . . . Parts Fried . | . . . . . . Impact Corruptions . | . . . . . . Robots Melted 1 | . . . . . 1 Combat Hostiles 1 | . . . . . 1 Parts Melted 3 | . . . . . 3 Heat Transferred 2000 | . . . . 880 1120 Parts Sabotaged . | . . . . . . Parts Stolen . | . . . . . . Parts Stripped . | . . . . . . Power Chain Reactions . | . . . . . . Missiles Intercepted . | . . . . . . Alert | -11 -10 -10 -10 -9 -8 ------- Run | Scr Mat Min Exi Min Mat Peak Influence 188 | . 188 144 . . 160 Average Influence 49 | . 75 111 . . 64 Maximum Alert Level . | . . . . . . Low Security (%) 100 | 100 100 100 . 100 100 Level 1 . | . . . . . . Level 2 . | . . . . . . Level 3 . | . . . . . . Level 4 . | . . . . . . Level 5 . | . . . . . . High Security . | . . . . . . Max Security . | . . . . . . Squads Dispatched . | . . . . . . Investigation . | . . . . . . Extermination . | . . . . . . Reinforcement . | . . . . . . Assault . | . . . . . . Garrison . | . . . . . . Intercept . | . . . . . . Construction Impeded . | . . . . . . Haulers Reinforced . | . . . . . . Stealth | -11 -10 -10 -10 -9 -8 --------- Run | Scr Mat Min Exi Min Mat Distress Signals 2 | . 1 . . . 1 Communications Jammed . | . . . . . . Distress Signals . | . . . . . . Times Spotted 31 | . 9 2 . 9 11 Peak Tracking Total 5 | . 5 2 . 3 3 Tactical Retreats . | . . . . . . Traps | -11 -10 -10 -10 -9 -8 ------- Run | Scr Mat Min Exi Min Mat Traps Triggered . | . . . . . . Indirectly . | . . . . . . Trap Hack Attempts . | . . . . . . Triggered . | . . . . . . Disarmed . | . . . . . . Reprogrammed . | . . . . . . Reused . | . . . . . . Traps Extracted . | . . . . . . Installed . | . . . . . . Triggered . | . . . . . . Machines | -11 -10 -10 -10 -9 -8 ---------- Run | Scr Mat Min Exi Min Mat Machines Disabled 3 | . 2 1 . . . Max in Single Turn 1 | . 1 1 . . . Machines Sabotaged . | . . . . . . Garrisons Compromised . | . . . . . . Overloaded Fab Kills . | . . . . . . Fab Network Shutdowns . | . . . . . . Hacking | -11 -10 -10 -10 -9 -8 --------- Run | Scr Mat Min Exi Min Mat Machines Accessed 7 | . 1 1 5 . . Terminals 2 | . 1 1 . . . Fabricators . | . . . . . . Repair Stations . | . . . . . . Recycling Units . | . . . . . . Scanalyzers . | . . . . . . Garrison Access . | . . . . . . Total Hacks 54 | . 3 2 49 . . Successful 51 | . 1 1 49 . . Failed 3 | . 2 1 . . . Catastrophic . | . . . . . . Database Lockouts . | . . . . . . Manual 4 | . . . 4 . . Terminals 5 | . 3 2 . . . Fabricators . | . . . . . . Repair Stations . | . . . . . . Recycling Units . | . . . . . . Scanalyzers . | . . . . . . Garrison Access . | . . . . . . Terminal Hacks 51 | . 1 1 49 . . Record 48 | . . . 48 . . Level Access Points 1 | . 1 . . . . Recall Investigation 1 | . . 1 . . . EX-Prototype ID Bank 1 | . . . 1 . . Fabricator Hacks . | . . . . . . Repair Station Hacks . | . . . . . . Recycling Unit Hacks . | . . . . . . Scanalyzer . | . . . . . . Garrison Access Hacks . | . . . . . . Unauthorized Hacks . | . . . . . . Terminals . | . . . . . . Fabricators . | . . . . . . Repair Stations . | . . . . . . Recycling Units . | . . . . . . Scanalyzers . | . . . . . . Garrison Access . | . . . . . . Data Cores Recovered . | . . . . . . Used . | . . . . . . Hacking Detections 2 | . 1 1 . . . Full Trace Events . | . . . . . . Feedback Events . | . . . . . . Feedback Blocked . | . . . . . . Robot Schematics Acquired . | . . . . . . Robots Built . | . . . . . . Matter . | . . . . . . Time . | . . . . . . Total Robot Build Rating . | . . . . . . Part Schematics Acquired . | . . . . . . Parts Built . | . . . . . . Matter . | . . . . . . Time . | . . . . . . Total Part Build Rating . | . . . . . . Parts Repaired . | . . . . . . Time . | . . . . . . Parts Recycled . | . . . . . . Recycled Matter . | . . . . . . Retrieved Matter . | . . . . . . Retrieved Components . | . . . . . . Parts Scanalyzed . | . . . . . . Part Schematics Acquired . | . . . . . . Parts Damaged . | . . . . . . Bothacking | -11 -10 -10 -10 -9 -8 ------------ Run | Scr Mat Min Exi Min Mat Used RIF Installer . | . . . . . . Robots Hacked . | . . . . . . Non-combat . | . . . . . . Combat . | . . . . . . Robot Hacks Applied . | . . . . . . Relay Couplers Released . | . . . . . . Robots Rewired . | . . . . . . Allies Hacked . | . . . . . . Hacks Repelled . | . . . . . . Allies | -11 -10 -10 -10 -9 -8 -------- Run | Scr Mat Min Exi Min Mat Total Allies 2 | . . . . 2 . Largest Group 2 | . . . . 2 2 Highest-Rated Group 49 | . . . . 49 49 Highest-Rated Ally 31 | . . . . 31 31 Total Orders . | . . . . . . Ally Attacks 13 | . . . . 11 2 Total Damage 83 | . . . . 63 20 Kills 2 | . . . . 2 . Allies Corrupted . | . . . . . . Allies Melted . | . . . . . . Intel | -11 -10 -10 -10 -9 -8 ------- Run | Scr Mat Min Exi Min Mat Robot Analysis Total . | . . . . . . Derelict Logs Recovered 2 | . . 1 . 1 . Drone Launches . | . . . . . . Drone Recoveries . | . . . . . . Exploration | -11 -10 -10 -10 -9 -8 ------------- Run | Scr Mat Min Exi Min Mat Turns Passed 3415 | 89 280 363 1566 670 447 Spaces Moved 2047 | 55 140 209 977 406 260 Core 8 | 8 . . . . . Treads 2039 | 47 140 209 977 406 260 Legs . | . . . . . . Wheels . | . . . . . . Hover . | . . . . . . Flight . | . . . . . . Fastest Speed 50 | 50 160 160 160 160 160 Average Speed 159 | 144 160 160 160 160 160 Slowest Speed 160 | 160 160 160 160 160 160 Overloaded Moves . | . . . . . . Propulsion Burnouts . | . . . . . . Robots Hopped . | . . . . . . Cave-ins Triggered . | . . . . . . Exploration Rate (%) 37 | 4 19 29 92 64 17 Regions Visited 5 Branch Regions 3 Pre-discovered Areas 1 | . . . 1 . . Known Exits Taken . | . . . . . . Unknown Exits Taken 5 | 1 1 1 1 1 . Scrap Searched 1 | . . . . 1 . Spaces Dug . | . . . . . . Terrain Destroyed 47 | . 26 21 . . . Melee . | . . . . . . Projectile . | . . . . . . AOE 47 | . 26 21 . . . Actions | -11 -10 -10 -10 -9 -8 --------- Run | Scr Mat Min Exi Min Mat Total 2134 | 62 167 232 980 416 277 Wait 21 | . . 21 . . . Move 2042 | 54 139 208 976 405 260 Hop . | . . . . . . Pick Up 1 | . . . . . 1 Fast Attach 14 | 7 4 . 2 . 1 Attach . | . . . . . . Detach . | . . . . . . Swap . | . . . . . . Drop 5 | 1 1 . 2 . 1 Fire 47 | . 19 3 . 11 14 Melee . | . . . . . . Ram . | . . . . . . Kick . | . . . . . . Crush 4 | . 4 . . . . Escape Stasis . | . . . . . . Rewire . | . . . . . . Trap . | . . . . . . Miscellaneous . | . . . . . . Route ------- -11/Scrapyard -10/Materials (discovered 4 exits: Mat x3 / *Min) -10/Mines (discovered 2 exits: *Mat / *Exi) -10/Exiles (discovered 2 exits: [*Min x2]) -9/Mines -8/Materials (discovered 1 exit: Fac) History --------- Turn | Location | Event 49 | -11/Scrapyard | Upgraded with Power slot (x1) 49 | -11/Scrapyard | Upgraded with Propulsion slot (x1) 49 | -11/Scrapyard | Upgraded with Utility slot (x1) 49 | -11/Scrapyard | Upgraded with Weapon slot (x2) 55 | -11/Scrapyard | Discovered new exit (range 16) 90 | -11/Scrapyard | Entered Materials 286 | -10/Materials | Identified exit to Materials 323 | -10/Materials | Discovered new exit (range 9) 370 | -10/Materials | Entered Mines 417 | -10/Mines | Deemed a non-threat by the Exiles lab entrance 418 | -10/Mines | Discovered new exit (range 5) 468 | -10/Mines | Learned location of 1 exit from Materials 532 | -10/Mines | Reached level 2 585 | -10/Mines | Discovered exit to Materials (range 7) 635 | -10/Mines | Build established: Gunner 733 | -10/Mines | Entered Exiles 796 | -10/Exiles | Discovered new exit (range 14) 857 | -10/Exiles | Met 8R-AWN 893 | -10/Exiles | Met EX-HEX 1052 | -10/Exiles | Met EX-DEC 1193 | -10/Exiles | Learned location of Zion (-6) 1353 | -10/Exiles | Discovered new exit (range 11) 1511 | -10/Exiles | Visited The Gauntlet 1726 | -10/Exiles | Met EX-BIN 1764 | -10/Exiles | Aligned with FarCom system 1766 | -10/Exiles | Given EX-Vault access code 1894 | -10/Exiles | Opened EX-Vault 1902 | -10/Exiles | Found Prototype Energy Cannon 1902 | -10/Exiles | Identified Gui. Plasma Cannon 1977 | -10/Exiles | Warned to stay clear of 0b10 Research branches 2208 | -10/Exiles | Build established: Mutant 2299 | -10/Exiles | Left Exiles lab with Gui. Plasma Cannon 2299 | -10/Exiles | Entered Mines 2376 | -9/Mines | Assembled infested the area 2381 | -9/Mines | Assisted by a Guerilla fighting off Assembled 2451 | -9/Mines | Core integrity fell below 50% 2697 | -9/Mines | Learned Materials stockpile data 2805 | -9/Mines | Discovered new exit (range 8) 2969 | -9/Mines | Entered Materials 2969 | -8/Materials | Accompanied by 2 allies 2970 | -8/Materials | Identified exit to Factory 2970 | -8/Materials | Core integrity fell below 50% 2971 | -8/Materials | Reached level 3 2974 | -8/Materials | Led the pair of lost Derelicts to an unsafe place 3189 | -8/Materials | Core integrity fell below 20% 3198 | -8/Materials | Reached level 4 3416 | -8/Materials | Destroyed by G-47 Trooper with Particle Gun Last Messages --------------- 03198_ Y-45 Defender destroyed. 03203_ Power failure, Lgt. Ion Engine shutdown. 03205_ Upgraded: Energy Generation (+10) 03205_ Upgraded: Inventory Capacity (+1) 03205_ Upgraded: Sight Range (+1) 03205_ Upgraded: Sensor Range (+2) 03205_ Upgraded: KI Damage % (+5) 03230_ R-06 Scavenger collects Lgt. Treads. 03231_ Protomatter-50 decays. 03235_ R-06 Scavenger collects Heat Sink. 03250_ R-06 Scavenger collects Lgt. Treads. 03265_ Acquired Minigun. 03330_ W-25 Informer destroyed. 03373_ R-06 Scavenger collects Imp. Hover Unit. 03397_ R-06 Scavenger inserts Imp. Sensor Array into recycling unit. 03400_ R-06 Scavenger inserts Visual Processing Unit into recycling unit. 03401_ Recycling unit begins recycling process. 03403_ R-06 Scavenger inserts Imp. Ion Engine into recycling unit. 03406_ R-06 Scavenger inserts Imp. Hover Unit into recycling unit. 03407_ Recycling unit begins recycling process. Map ----- +----------------------------------------------------+ | ???????????????????????????????????????? | | ????????##########???????######????????? | | ????????# #??????##%%%%##???????? | | ????????# """ #??????#% %#???????? | | ????????# """ ######?#% %#???????? | | ????????# """ # = ### #####???????? | | ????????# + % #???????????? | | ????????# """ # #???????????? | | ????????# """ # ##+########??????? | | ????????# """ ## ## #??????? | | ????????# ## ## """ """ #??????? | | ???????############ # """ """ #??????? | | ???????# ## %## """ """ #??????? | | ???????? ## ## #??????? | | ?????????""" """ # #! "" "" #??????? | | ?????????""" """ + # ""S"" #??????? | | ?????????""" """ # # """" #??????? | | ??????????"" """ # ##########???????? | | #####?????"" """ ## ###########???????? | | #????? ## # #???????? | | ###########+### / "" #???????? | | bg g= % # """ Y" #???????? | | % % # """ "" #???????? | | #####+######+##### """ #???????? | | #??? "???# ???# #???????? | | ##??? "???# ???# @ g #???????? | | #???"" ??# "??# !gg #???????? | | #???"" ??# "??#########+#???????? | | #??""" !?# ???????????????????? | | % ## """ ?# ???????????????????? | | + """ #######??????????????????? | | ## ?????????????????????????? | | ## #??########?????????????????????????? | | ?# #???????????????????????????????????? | | ?# #????????????########???????????????? | | ?# #????????????#! [ #???????????????? | | ?# #????????????# #???????????????? | | ?# #????????????# """ #???????????????? | | ?# #????????????# """ #???????????????? | | ##+########?????# """ #???????????????? | | # ####### #???????????????? | | # """ # ###+###########?w??????? | | # """"" # #????????? | | # """"" + #????????? | | # """"" # #????????? | | # """ # ##########+####????????? | | #/ ###+###?????# #????????]? | | # #???????????#! #?????????? | | ###########???????????# """ #?????????? | | ??????????????????????# """ #?????????? | +----------------------------------------------------+ Best States ------------- Heat Dissipation 25 Energy Generation 25 Energy Capacity 300 Matter Stores 700 Matter Capacity 700 Sight Range 17 Robot Scan Range 4 Terrain Scan Density 210 Evasion (%) 40 Recoil Reduction 2 Item Schematics ----------------- None Robot Schematics ------------------ None Fabricated ------------ Nothing Alien Tech Used ----------------- None Achievements -------------- None Challenges ------------ None RPGLIKE | -11 -10 -10 -10 -9 -8 --------- Run | Scr Mat Min Exi Min Mat Levels Raised 3 | . . 1 . . 2 XP Earned 7620 | 3000 740 855 350 500 2175 XP Spent 7455 | 2960 . 1520 . . 2975 Upgrades 27 | 9 . 9 . . 9 Power Slot 1 | 1 . . . . . Propulsion Slot 1 | 1 . . . . . Utility Slot 1 | 1 . . . . . Weapon Slot 2 | 2 . . . . . Core Integrity 4 | 4 . . . . . Energy Generation 2 | . . . . . 2 Energy Storage 3 | . . 3 . . . Matter Storage 3 | . . 3 . . . Inventory Capacity 1 | . . . . . 1 Sight Range 1 | . . . . . 1 Sensor Range 2 | . . 1 . . 1 Terrain Scan Density 2 | . . 2 . . . Ranged Accuracy 3 | . . . . . 3 KI Damage % 1 | . . . . . 1 Protomatter Created 321 | . 69 28 . 60 164 Protomatter Decayed 444 | . 57 28 . 195 164 Game ------ Seed BeamSmartbombImmobilizer Manual? 0 Play Time 00:30:00 Cumulative 17.1 hours Start 2019.12.17 @ 07:09:08 End 2019.12.17 @ 08:22:54 Sessions 1 Manual Loads 0 Difficulty Rogue Special Mode Winter2019/RPGLIKE Game No. 70 Rogue 66 Adventurer 0 Explorer 4 Win Type - Total 0 Types 0/0/0/0/0/0/0 Lore% 21 Gallery% 16 Achievement% 16 Wizard Run 0 Options --------- ASCII 0 Keyboard 0 Movement Arrows Keybinds 0 Fullscreen 1 Font 18/SmallcapsGlow Map View 76x50 Tactical HUD 1 Map Filters NONE Filters NONE Steam 1 RUN: 234ce901-d966-4336-93cc-de886d0e42f9